Body Name,Body,Service Level,Expense Type,Expense Code,Narrative,Date,Transaction Number,Amount,Capital and Revenue,Supplier Name,Supplier ID
South Ribble Borough Council,http://statistics.data.gov.uk/id/local-authority/30UE,Recreation & Sport,Professional Fees,4510,Delivery of Inclusive Coaching Workshop Monday 18th December,06/03/2024,0000496697,571.7,Revenue,Access Sport CIO,0
South Ribble Borough Council,http://statistics.data.gov.uk/id/local-authority/30UE,Recreation & Sport,Dev ftarget Sports-Coaching,4894,Local Authority Contribution 2023-24,20/03/2024,0000497025,2000,Revenue,ACTIVE LANCASHIRE,0
South Ribble Borough Council,http://statistics.data.gov.uk/id/local-authority/30UE,Surplus or Deficit on Trading,Reactive Repair & Maintenance,2020,", To remove existing boiler and hot water cylinder and replace leaking pipework within the boiler cupboard, , , Current gas pipe ",13/03/2024,0000496243,2380,Revenue,Ainscoe Plumbing & Heating Ltd,0
South Ribble Borough Council,http://statistics.data.gov.uk/id/local-authority/30UE,Recreation & Sport,Reactive Repair & Maintenance,2020,"Disconnect kitchen sink and alter pipework to suite new sink, , Disconnect and remove redundant wall hung basin, , Alter the main",20/03/2024,0000496865,740,Revenue,Ainscoe Plumbing & Heating Ltd,0
South Ribble Borough Council,http://statistics.data.gov.uk/id/local-authority/30UE,Surplus or Deficit on Trading,Reactive Repair & Maintenance,2020,"Site - ADDRESS REDACTED, Disconnect kitchen sink and carry out first fix of pipework,",26/03/2024,0000497262,640,Revenue,Ainscoe Plumbing & Heating Ltd,0
South Ribble Borough Council,http://statistics.data.gov.uk/id/local-authority/30UE,Capital,Cap Contract Payment,C230,"Design & Build of metal framed glass house at the walled garden, Worden Park",06/03/2024,0000496430,14873.89,Revenue,Alitex Ltd,0
South Ribble Borough Council,http://statistics.data.gov.uk/id/local-authority/30UE,Capital,Cap Contract Payment,C230,"Design & Build of metal framed glass house at the walled garden, Worden Park",13/03/2024,0000496752,2124.83,Revenue,Alitex Ltd,0
South Ribble Borough Council,http://statistics.data.gov.uk/id/local-authority/30UE,Culture & Heritage,Security Measures,4272,"15 x IR 614244 GMK master keys as discussed/quoted by NAME REDACTED 22/11/2023, 15 keys - 548.40, + 11.20 Carriage, Total- 559",06/03/2024,0000494564,559.6,Revenue,Allgood PLC,0
South Ribble Borough Council,http://statistics.data.gov.uk/id/local-authority/30UE,Central Support Services,Agency Staff,1121,NAME REDACTED w/e 11/02/2024 - Week 45,06/03/2024,0000496685,6140.28,Revenue,ALS Managed Services Ltd,0
South Ribble Borough Council,http://statistics.data.gov.uk/id/local-authority/30UE,Central Support Services,Agency Staff,1121,NAME REDACTED w/e 18/02/2024 - Week 46,06/03/2024,0000496704,6685.45,Revenue,ALS Managed Services Ltd,0
South Ribble Borough Council,http://statistics.data.gov.uk/id/local-authority/30UE,Central Support Services,Agency Staff,1121,NAME REDACTED w/e 25/02/2024 - Week 47,13/03/2024,0000496883,7075.21,Revenue,ALS Managed Services Ltd,0
South Ribble Borough Council,http://statistics.data.gov.uk/id/local-authority/30UE,Central Support Services,Agency Staff,1121,NAME REDACTED w/e 10/03/2024 - Week 49,26/03/2024,0000497253,6793.14,Revenue,ALS Managed Services Ltd,0
South Ribble Borough Council,http://statistics.data.gov.uk/id/local-authority/30UE,Central Support Services,Agency Staff,1121,NAME REDACTED w/e 17/03/2024 - Week 50,26/03/2024,0000497279,7071.09,Revenue,ALS Managed Services Ltd,0
South Ribble Borough Council,http://statistics.data.gov.uk/id/local-authority/30UE,Community Development,Miscellaneous Expenses,4851,0,20/03/2024,0000497150,500,Revenue,Anastasiia Teslenko,0
South Ribble Borough Council,http://statistics.data.gov.uk/id/local-authority/30UE,Community Development,Miscellaneous Expenses,4851,0,20/03/2024,0000497144,500,Revenue,Angela Nolan,0
South Ribble Borough Council,http://statistics.data.gov.uk/id/local-authority/30UE,Capital,Capital Grant,C570,"DFG WORK FOR ADAPTATION FOR LEVEL ACCESS SHOWER AT ADDRESS REDACTED AS PER SRBC PLANS AND QUOTE SUPPLIED OF 6042.50, TOTAL",06/03/2024,0000496675,6042.5,Revenue,APG DOMESTIC SERVICES,0
South Ribble Borough Council,http://statistics.data.gov.uk/id/local-authority/30UE,Community Development,Contributions to Other Bodies,4730,Food Provision for HAF Plus during February Half Term 2024,20/03/2024,0000497026,1100,Revenue,Artisan Deli Limited,0
South Ribble Borough Council,http://statistics.data.gov.uk/id/local-authority/30UE,Economic Development,Investment & Improvement,485K,2024 Full Band 2 Membership,06/03/2024,0000496448,790,Revenue,Association of Town Centre Management,0
South Ribble Borough Council,http://statistics.data.gov.uk/id/local-authority/30UE,Community Development,Miscellaneous Expenses,4851,"Afternoon journeys for 12 weeks, every Monday, Tuesday and Thursday. From Leyland Hotel at 12.30pm to Uclan, and then Uclan at 3.",20/03/2024,0000496918,585,Revenue,AVACAB LTD,0
South Ribble Borough Council,http://statistics.data.gov.uk/id/local-authority/30UE,Central Support Services,Reactive Repair & Maintenance,2020,"To remove existing door and replace with one new insulated steel personnel door. , Merlin grey powder coat colour finish, opening",13/03/2024,0000496122,1015,Revenue,AVALON DOORS & AWNINGS LTD,0
South Ribble Borough Council,http://statistics.data.gov.uk/id/local-authority/30UE,Surplus or Deficit on Trading,Reactive Repair & Maintenance,2020,Option B: Supply & install one new barrel with a single-phase tube motor & safety brake. Internal key or rocker switch. Please in,13/03/2024,0000496123,1590,Revenue,AVALON DOORS & AWNINGS LTD,0
South Ribble Borough Council,http://statistics.data.gov.uk/id/local-authority/30UE,Surplus or Deficit on Trading,Reactive Repair & Maintenance,2020,Parts,13/03/2024,0000496215,1825,Revenue,AVALON DOORS & AWNINGS LTD,0
South Ribble Borough Council,http://statistics.data.gov.uk/id/local-authority/30UE,Central Support Services,Materials General,4040,"top roller, inner bearing, outer bearing, VIN REDACTED, JFC 21462",26/03/2024,0000497215,653.99,Revenue,BALMERS GM LTD,0
South Ribble Borough Council,http://statistics.data.gov.uk/id/local-authority/30UE,Capital,Capital Grant,C570,DFG WORK FOR ADAPTATION FOR A LEVEL ACCESS SHOWER AT ADDRESS REDACTED AS PER SRBC PLANS AND QUOTE SUPPLIED OF 5,26/03/2024,0000497331,2677.5,Revenue,Bambers Remedial Contractors Ltd,0
South Ribble Borough Council,http://statistics.data.gov.uk/id/local-authority/30UE,Homelessness,Temporary Accommodation,5311,"Hello, , I am raising a purchase order to pay Bay Roomz hotel in Morecambe",20/03/2024,0000497027,790,Revenue,Bay Roomz Ltd,0
South Ribble Borough Council,http://statistics.data.gov.uk/id/local-authority/30UE,Surplus or Deficit on Trading,Reactive Repair & Maintenance,2020,"Goods to be ordered:, Remedial works after failed EICR. Consumer unit upgrade, replacement lights. sockets switches., As per quot",13/03/2024,0000496539,2269.5,Revenue,BELEC ELECTRICAL LTD,0
South Ribble Borough Council,http://statistics.data.gov.uk/id/local-authority/30UE,Surplus or Deficit on Trading,Reactive Repair & Maintenance,2020,"Fix fault on ring main wiring behind kitchen units and upstairs slinked ring main , Service Consumer unit replacement, and test.,",20/03/2024,0000497123,653,Revenue,BELEC ELECTRICAL LTD,0
South Ribble Borough Council,http://statistics.data.gov.uk/id/local-authority/30UE,Open Spaces,GM Refurbishment,4657,External lights at farmyard cottages,26/03/2024,0000497125,690,Revenue,BELEC ELECTRICAL LTD,0
South Ribble Borough Council,http://statistics.data.gov.uk/id/local-authority/30UE,Capital,Cap Contract Payment,C230,"Bloom Project 5696 � Leyland Town Deal � Program Management and Development Management , Instruction from NAME REDACTED",20/03/2024,0000497061,27900,Revenue,Bloom Procurement Services Ltd,0
South Ribble Borough Council,http://statistics.data.gov.uk/id/local-authority/30UE,Short Term Creditors,Amount Paid,0030,Blues and Twos - Feb 24 Deductions from Payroll,26/03/2024,0000497289,6882,Revenue,Blues and Twos Credit Union,0
South Ribble Borough Council,http://statistics.data.gov.uk/id/local-authority/30UE,Capital,Cap Contract Payment,C230,"Leyland Town Deal - Demolition and Asbestos Removal at the Former Engineering Works Site at Quin Street, Leyland",06/03/2024,0000496273,13641.54,Revenue,Bradley Demolition Limited,0
South Ribble Borough Council,http://statistics.data.gov.uk/id/local-authority/30UE,Capital,Cap Contract Payment,C230,"Leyland Town Deal - Demolition and Asbestos Removal at the Former Engineering Works Site at Quin Street, Leyland",06/03/2024,0000496281,52000,Revenue,Bradley Demolition Limited,0
South Ribble Borough Council,http://statistics.data.gov.uk/id/local-authority/30UE,Capital,Misc Capital Payments,C234,,13/03/2024,0000496637,506.88,Revenue,British Gas Lite - BGL460233,0
South Ribble Borough Council,http://statistics.data.gov.uk/id/local-authority/30UE,Central Support Services,Materials General,4040,DERBY SLIMLINE LITTER BIN WITH ASHTRAY (BLACK)-BX45 2596,20/03/2024,0000497028,1450,Revenue,BROXAP LTD,0
South Ribble Borough Council,http://statistics.data.gov.uk/id/local-authority/30UE,Central Support Services,Materials General,4040,DERBY SLIMLINE LITTER BIN W/O ASHTRAY (BLACK),20/03/2024,0000497028,1400,Revenue,BROXAP LTD,0
South Ribble Borough Council,http://statistics.data.gov.uk/id/local-authority/30UE,Central Support Services,Materials General,4040,Derby Slimline Litter bin with Ashtray(black)-BX45 2596,26/03/2024,0000497172,6975,Revenue,BROXAP LTD,0
South Ribble Borough Council,http://statistics.data.gov.uk/id/local-authority/30UE,Central Support Services,Materials General,4040,DERBY SLIMLINE LITTER BIN W/O ASHTRAY (BLACK),26/03/2024,0000497172,1345,Revenue,BROXAP LTD,0
South Ribble Borough Council,http://statistics.data.gov.uk/id/local-authority/30UE,Central Support Services,Materials General,4040,40LT HERCULES LITTER BIN (BLACK)-BX45 2556-40,26/03/2024,0000497172,1435,Revenue,BROXAP LTD,0
South Ribble Borough Council,http://statistics.data.gov.uk/id/local-authority/30UE,Central Support Services,Agency Staff,1121,"Business smart solutions, extra support for workloads over annual leave.",20/03/2024,0000497163,4995,Revenue,Business Smart Solutions Ltd,0
South Ribble Borough Council,http://statistics.data.gov.uk/id/local-authority/30UE,Central Support Services,Operational Equip & Tools,4010,For additional items of equipment for facilities Officers as per NAME REDACTED - To be picked u[p or delivered as requested.,20/03/2024,0000497029,641.73,Revenue,C & W BERRY LTD,0
South Ribble Borough Council,http://statistics.data.gov.uk/id/local-authority/30UE,Capital,Cap Contract Payment,C230,"Main Contract - Jubilee Gardens Extra Care, West Paddock, Leyland, Construction Contract for Extra Care Facility, Instruction as ",20/03/2024,0000497160,639478.43,Revenue,Caddick Construction (NW) Ltd,0
South Ribble Borough Council,http://statistics.data.gov.uk/id/local-authority/30UE,Regulatory Services,Analyst Fee,4542,ADMS-Roads annual support for single-user permanent licence P01.1907.C.ROADS.UK,13/03/2024,0000496806,1150,Revenue,CAMBRIDGE ENVIRONMENTAL RESEARCHCONSULTANTS LTD,0
South Ribble Borough Council,http://statistics.data.gov.uk/id/local-authority/30UE,Central Support Services,Materials General,4040,4000 litres of Adblue @ 0.39ppl,20/03/2024,0000496938,1560,Revenue,CGN Limited,0
South Ribble Borough Council,http://statistics.data.gov.uk/id/local-authority/30UE,Central Support Services,Materials General,4040,1000L Fleetstar performance oil @2.70,20/03/2024,0000496939,2700,Revenue,CGN Limited,0
South Ribble Borough Council,http://statistics.data.gov.uk/id/local-authority/30UE,Capital,Cap Professional Fees,C210,"Leyland Town Deal, Legal Advice involving , , �	Site wide title checks, �	Public Realm licenses, �	Market refurbishment, �	Quinn ",26/03/2024,0000497002,5000,Revenue,Chadwick Lawrence Solicitors LLP,0
South Ribble Borough Council,http://statistics.data.gov.uk/id/local-authority/30UE,Central Support Services,Materials General,4040,"2x abs ring, 2x abs sensors, 2 x seal kits, VIN REDACTED, JFC 21239",26/03/2024,0000496924,510.99,Revenue,CICELEY COMMERCIALS LTD,0
South Ribble Borough Council,http://statistics.data.gov.uk/id/local-authority/30UE,Central Support Services,Computer Equipment,4241,CCTV INSTALLATION AS PER ASSET TYPE 4 X18 RVC TOO BE INSTALLED AT SOUTH RIBBLE DEPOT AS AGREED WITH NAME REDACTED TO BE INSTALLE,06/03/2024,0000496257,1604.56,Revenue,Contel LTD,0
South Ribble Borough Council,http://statistics.data.gov.uk/id/local-authority/30UE,Central Support Services,Computer Equipment,4241,CCTV INSTALLATION AS PER ASSET TYPE 4 X18 RVC TOO BE INSTALLED AT SOUTH RIBBLE DEPOT AS AGREED WITH NAME REDACTED TO BE INSTALLE,06/03/2024,0000496277,1604.56,Revenue,Contel LTD,0
South Ribble Borough Council,http://statistics.data.gov.uk/id/local-authority/30UE,Central Support Services,Computer Equipment,4241,CCTV INSTALLATION AS PER ASSET TYPE 4 X18 RVC TOO BE INSTALLED AT SOUTH RIBBLE DEPOT AS AGREED WITH NAME REDACTED TO BE INSTALLE,13/03/2024,0000496318,1604.56,Revenue,Contel LTD,0
South Ribble Borough Council,http://statistics.data.gov.uk/id/local-authority/30UE,Central Support Services,Miscellaneous Expenses,4851,Serve and Evict- ADDRESS REDACTED,26/03/2024,0000497308,2150,Revenue,Court Enforcement Specialists Ltd,0
South Ribble Borough Council,http://statistics.data.gov.uk/id/local-authority/30UE,Central Support Services,Miscellaneous Expenses,4851,Cull General digitisation Services- SRBC Civic Centre,26/03/2024,0000496674,1684,Revenue,Cull Paperless Solutions,0
South Ribble Borough Council,http://statistics.data.gov.uk/id/local-authority/30UE,Community Development,Miscellaneous Expenses,4851,0,20/03/2024,0000497135,500,Revenue,Danielle Mensah,0
South Ribble Borough Council,http://statistics.data.gov.uk/id/local-authority/30UE,Central Support Services,External Contractors Charges,4570,"Spec Repair, VIN REDACTED, JFC21326",13/03/2024,0000496732,820,Revenue,DAS-AUTOMOTIVE (NORTHWEST)LTD.,0
South Ribble Borough Council,http://statistics.data.gov.uk/id/local-authority/30UE,Community Development,Miscellaneous Expenses,4851,0,20/03/2024,0000497146,500,Revenue,Debbie Moore,0
South Ribble Borough Council,http://statistics.data.gov.uk/id/local-authority/30UE,Economic Development,Computer Software,4242,Citizen Space Renewal,06/03/2024,0000495629,7497.5,Revenue,Delib Ltd,0
South Ribble Borough Council,http://statistics.data.gov.uk/id/local-authority/30UE,Central Support Services,External Contractors Charges,4570,"1x spec repair, VIN REDACTED, JFC21026",13/03/2024,0000496709,4318.77,Revenue,DENNIS EAGLE LTD,0
South Ribble Borough Council,http://statistics.data.gov.uk/id/local-authority/30UE,Central Support Services,External Contractors Charges,4570,"Spec Repair, VIN REDACTED, JFC-21113",13/03/2024,0000496727,1482.34,Revenue,DENNIS EAGLE LTD,0
South Ribble Borough Council,http://statistics.data.gov.uk/id/local-authority/30UE,Central Support Services,External Contractors Charges,4570,"Spec Repair, VIN REDACTED, JFC 20870",13/03/2024,0000496728,2710.17,Revenue,DENNIS EAGLE LTD,0
South Ribble Borough Council,http://statistics.data.gov.uk/id/local-authority/30UE,General Government Grants,Miscellaneous Expenses,4851,,26/03/2024,0000497159,1463091,Revenue,Department for Communities and Local Government,0
South Ribble Borough Council,http://statistics.data.gov.uk/id/local-authority/30UE,Corporate Management,Energy/Fuel Payments,4849,energy bill support scheme alternative funding recovery (EBSS AF),26/03/2024,0000496111,249920,Revenue,Department for Energy Security and Net Zero,0
South Ribble Borough Council,http://statistics.data.gov.uk/id/local-authority/30UE,Corporate Management,Energy/Fuel Payments,4849,alternative fuel payment alternative funding recovery (AFP AF),26/03/2024,0000496112,25000,Revenue,Department for Energy Security and Net Zero,0
South Ribble Borough Council,http://statistics.data.gov.uk/id/local-authority/30UE,Central Support Services,Reactive Repair & Maintenance,2020,"Biannual Electrical/Mechanical Servicing works in accordance with BS EN 15004 part 1 to the 1no , Fire Suppression Systems and 1n",20/03/2024,0000496809,1113.75,Revenue,DES Electrical Services Ltd,0
South Ribble Borough Council,http://statistics.data.gov.uk/id/local-authority/30UE,Central Support Services,Fire Extinguishers - R&M,2037,"Re: Biannual Gas System Test and Annual Room Integrity Test, South Ribble Borough Council, West Paddock, Leyland, PR25 1DH from ",20/03/2024,0000496810,1755,Revenue,DES Electrical Services Ltd,0
South Ribble Borough Council,http://statistics.data.gov.uk/id/local-authority/30UE,Culture & Heritage,Reactive Repair & Maintenance,2020,To attend site and carry out the following Fire Alarm service remedials that are required following our recent service. 2 x New F,26/03/2024,0000497103,1173.18,Revenue,DES Electrical Services Ltd,0
South Ribble Borough Council,http://statistics.data.gov.uk/id/local-authority/30UE,Recreation & Sport,Maintenance & Repair,4013,"Fire alarm service @ Moss Side Community Centre x two visits in 2023/24, As per quote - Job Ref- 17642, Instruction from NAME REDACTED",26/03/2024,0000497211,500,Revenue,DES Electrical Services Ltd,0
South Ribble Borough Council,http://statistics.data.gov.uk/id/local-authority/30UE,Central Support Services,IT Consumables,413A,"Fujitsu fi-5750C Maintenance (31st Jan 2024 - 30th Jan, 2025),  804.65 1  804.65, Fujitsu fi-6770 Maintenance (31st Jan 2024 - ",20/03/2024,0000496842,1500.4,Revenue,E FILE UK LTD,0
South Ribble Borough Council,http://statistics.data.gov.uk/id/local-authority/30UE,Surplus or Deficit on Trading,Electricity,2303,,26/03/2024,0000496901,840.31,Revenue,E On   A-3059D946,0
South Ribble Borough Council,http://statistics.data.gov.uk/id/local-authority/30UE,Economic Development,Grants Voluntary Organisation,4711,"Delivering a project to support businesses of all types and sizes with aspirations for net zero and decarbonisation plans, as set",06/03/2024,0000496414,35000,Revenue,East Lancashire Chamber of Commerce & Industry,0
South Ribble Borough Council,http://statistics.data.gov.uk/id/local-authority/30UE,Central Support Services,IT Consumables,413A,"2 iPhone 15 Black 128GB and cases 1282.99, , Internal note - (coms team)",20/03/2024,0000496843,1099.66,Revenue,EE Ltd,0
South Ribble Borough Council,http://statistics.data.gov.uk/id/local-authority/30UE,Community Development,Miscellaneous Expenses,4851,0,20/03/2024,0000497155,500,Revenue,Elisabeth Sawle,0
South Ribble Borough Council,http://statistics.data.gov.uk/id/local-authority/30UE,Capital,Cap Contract Payment,C230,"BREEAM AP consultancy services RIBA Stage 3-6 - Jubilee Gardens Extra Care Project, West Paddock, Leyland Closure of original ord",20/03/2024,0000495890,1635,Revenue,Energy Council Ltd is a Trading Name of EC Energy,0
South Ribble Borough Council,http://statistics.data.gov.uk/id/local-authority/30UE,Central Support Services,Materials General,4040,"PAS Pump, R/steer unit/Valve, VIN REDACTED, JFC 21326",06/03/2024,0000496382,1000,Revenue,Euro Municipals Ltd,0
South Ribble Borough Council,http://statistics.data.gov.uk/id/local-authority/30UE,Central Support Services,External Contractors Charges,4570,Joint Fleet Strategy Consultancy,26/03/2024,0000496758,12350,Revenue,EVP Solutions Limited,0
South Ribble Borough Council,http://statistics.data.gov.uk/id/local-authority/30UE,Parking Services,Maintenance & Repair,4013,Repairs to pay and display at Worden Park,20/03/2024,0000496877,657,Revenue,Flowbird Smart City UK Ltd,0
South Ribble Borough Council,http://statistics.data.gov.uk/id/local-authority/30UE,Central Support Services,Legal,4821,"Employment tribunal - NAME REDACTED, Legal fees",13/03/2024,0000496780,1381.5,Revenue,Forbes Solicitors Office,0
South Ribble Borough Council,http://statistics.data.gov.uk/id/local-authority/30UE,Central Support Services,Advertising- Recruitm Exp,1500,Sponsor Licence,20/03/2024,0000496912,2500,Revenue,Forbes Solicitors Office,0
South Ribble Borough Council,http://statistics.data.gov.uk/id/local-authority/30UE,Central Support Services,Legal,4821,"Professional fees for period 21.12.23 - 29.01.24, Employment tribunal.",20/03/2024,0000497112,4890,Revenue,Forbes Solicitors Office,0
South Ribble Borough Council,http://statistics.data.gov.uk/id/local-authority/30UE,Surplus or Deficit on Trading,Planned Annual Repair & Maintenance,2021,"Provide architectural services, including Principal Designer role, relating to the preparation of proposed floor plan and elevati",13/03/2024,0000496151,727,Revenue,FuZED Architecture and Design Ltd,0
South Ribble Borough Council,http://statistics.data.gov.uk/id/local-authority/30UE,Central Support Services,Materials General,4040,"Bin Lift spring, VIN REDACTED, JFC 21375",06/03/2024,0000496546,792.25,Revenue,GEESINK NORBA LTD,0
South Ribble Borough Council,http://statistics.data.gov.uk/id/local-authority/30UE,Central Support Services,Legal,4821,"Professional fees relating to miscalculation of CIL liability - 1,596.50, Disbursement of Counsel`s fees - 3,000.00",13/03/2024,0000496848,4596.5,Revenue,GELDARDS LLP,0
South Ribble Borough Council,http://statistics.data.gov.uk/id/local-authority/30UE,Capital,Cap Professional Fees,C210,"Leyland Town Deal - Planning Strategy Works, * Attend an in-person / virtual introductory meeting with the client and project tea",20/03/2024,0000496777,5500,Revenue,Gerald Eve LLP,0
South Ribble Borough Council,http://statistics.data.gov.uk/id/local-authority/30UE,Capital,Cap Vehicles,C440,10 x Ride on mowers,26/03/2024,0000497179,385950,Revenue,GIBSONS GARDEN MACHINERY LTD,0
South Ribble Borough Council,http://statistics.data.gov.uk/id/local-authority/30UE,Central Support Services,Reactive Repair & Maintenance,2020,"Works required following gas safety inspection. at Civic centre, West Paddock, Leyland, PR25 1DH , Replacement of combustion cham",13/03/2024,0000496094,721.3,Revenue,GOS Heating Ltd,0
South Ribble Borough Council,http://statistics.data.gov.uk/id/local-authority/30UE,Surplus or Deficit on Trading,Reactive Repair & Maintenance,2020,"Property - ADDRESS REDACTED, Boiler replacement , requred due to being past service life for new tennant., Installation of a new combi",13/03/2024,0000496383,1922.05,Revenue,GOS Heating Ltd,0
South Ribble Borough Council,http://statistics.data.gov.uk/id/local-authority/30UE,Housing Advice,External Contractors Charges,4570,A FFORDABLE WARMTH SCHEME FOR BOILER AT ADDRESS REDACTED AS PER QUOTE SUPPLIED OF 1729.91 INC VAT,06/03/2024,0000496592,1729.91,Revenue,GOS Heating Ltd,0
South Ribble Borough Council,http://statistics.data.gov.uk/id/local-authority/30UE,Capital,Capital Grant,C570,DFG WORK FOR ADAPTATION FOR LEVEL ACCESS SHOWER AT ADDRESS REDACTED AS PER SRBC PLANS AND QUOTE SUPPLIED OF,13/03/2024,0000496814,5017.63,Revenue,GOS Heating Ltd,0
South Ribble Borough Council,http://statistics.data.gov.uk/id/local-authority/30UE,Capital,Capital Grant,C570,"DFG WORK FOR ADAPTATION FOR A LEVEL ACCESS SHOWER AT ADDRESS REDACTED AS PER SRBC PLANS AND QUOTE SUPPLIED OF 6945.55,",13/03/2024,0000496833,3472.78,Revenue,GOS Heating Ltd,0
South Ribble Borough Council,http://statistics.data.gov.uk/id/local-authority/30UE,Central Support Services,Reactive Repair & Maintenance,2020,To attend site and carry out the following: Removal of broken aerial mast from the Civic Centre roof and make area safe. As per ,26/03/2024,0000497252,566,Revenue,GOS Heating Ltd,0
South Ribble Borough Council,http://statistics.data.gov.uk/id/local-authority/30UE,Central Support Services,Software Licensing,4243,"Grace - Risk Management Version Annual Licence Fee to 1st March 2025, Grace - Business Continuity Version Annual Licence Fee to 1",20/03/2024,0000496680,5390,Revenue,Grace Governance Solutions Ltd,0
South Ribble Borough Council,http://statistics.data.gov.uk/id/local-authority/30UE,Street Cleansing,External Contractors Charges,4570,"Removal of fly tip waste from Emnie Lane on 12.01.24, as per quotation QU0246",13/03/2024,0000495471,1200,Revenue,Greenfield Removals limited,0
South Ribble Borough Council,http://statistics.data.gov.uk/id/local-authority/30UE,Central Support Services,Planned Annual Repair & Maintenance,2021,"., Install swa cable taken from mains room to grease tap taken from new fused spur in mains room with rcd protection., , at Hurst",13/03/2024,0000495446,742,Revenue,H Clarke and Sons Ltd,0
South Ribble Borough Council,http://statistics.data.gov.uk/id/local-authority/30UE,Short Term Creditors,Amount Received,0140,,06/03/2024,0000495934,1286.68,Revenue,HM REVENUE & CUSTOMS,0
South Ribble Borough Council,http://statistics.data.gov.uk/id/local-authority/30UE,Short Term Creditors,Amount Received,0140,,06/03/2024,0000496108,777.4,Revenue,HM REVENUE & CUSTOMS,0
South Ribble Borough Council,http://statistics.data.gov.uk/id/local-authority/30UE,Short Term Creditors,Amount Paid,0030,HMRC Income Tax - Feb 24 Deductions from Payroll,26/03/2024,0000497297,128441.35,Revenue,HM REVENUE & CUSTOMS 065PV00107808,0
South Ribble Borough Council,http://statistics.data.gov.uk/id/local-authority/30UE,Unapportionable Central OHeads,Apprentice Levy,1111,HMRC App Levy - Feb 24 Deductions from Payroll,26/03/2024,0000497298,4243,Revenue,HM REVENUE & CUSTOMS 065PV00107808,0
South Ribble Borough Council,http://statistics.data.gov.uk/id/local-authority/30UE,Short Term Creditors,Amount Paid,0030,HMRC NI EE's - Feb 24 Deductions from Payroll,26/03/2024,0000497300,62739.64,Revenue,HM REVENUE & CUSTOMS 065PV00107808,0
South Ribble Borough Council,http://statistics.data.gov.uk/id/local-authority/30UE,Short Term Creditors,Amount Paid,0030,HMRC NI ER's - Feb 24 Deductions from Payroll,26/03/2024,0000497301,104795.44,Revenue,HM REVENUE & CUSTOMS 065PV00107808,0
South Ribble Borough Council,http://statistics.data.gov.uk/id/local-authority/30UE,Short Term Creditors,Amount Paid,0030,HMRC Student Loans - Feb 24 Deductions from Payroll,26/03/2024,0000497303,4456,Revenue,HM REVENUE & CUSTOMS 065PV00107808,0
South Ribble Borough Council,http://statistics.data.gov.uk/id/local-authority/30UE,Capital,Capital Grant,C570,DFG WORK FOR ADAPTATION FOR DOOR OPENING SYSTEM AT ADDRESS REDACTED AS PER SRBC PLANS AND REVISED QUOTE SUPPLIED ,20/03/2024,0000497038,3060.55,Revenue,Hugh Steeper Limited,0
South Ribble Borough Council,http://statistics.data.gov.uk/id/local-authority/30UE,Capital,Cap Professional Fees,C210,"Description: Leyland Town Deal Fire Engineer Services (RIBA Stage 4) as per NAME REDACTED and NAME REDACTED request , Fee: �",13/03/2024,0000496671,3500,Revenue,Hydrock Consultants Ltd,0
South Ribble Borough Council,http://statistics.data.gov.uk/id/local-authority/30UE,Community Development,Miscellaneous Expenses,4851,0,20/03/2024,0000497156,500,Revenue,Ian Dockney,0
South Ribble Borough Council,http://statistics.data.gov.uk/id/local-authority/30UE,Capital,Consultancy,C259,Project Management/ Contract Administration Services (Stages 5-7) for the delivery of Jubilee Gardens Extra Care Facility at West,20/03/2024,0000496024,4025,Revenue,Identity Consult Ltd,0
South Ribble Borough Council,http://statistics.data.gov.uk/id/local-authority/30UE,Capital,Consultancy,C259,Project Management/ Contract Administration Services (Stages 5-7) for the delivery of Jubilee Gardens Extra Care Facility at West,20/03/2024,0000496794,4025,Revenue,Identity Consult Ltd,0
South Ribble Borough Council,http://statistics.data.gov.uk/id/local-authority/30UE,Central Support Services,IT Consumables,413A,Eros network licence - Annual support & maintenance Eros Scanning network licence - Annual support & maintenance Eros Scanning pe,26/03/2024,0000496415,3482.27,Revenue,IDOX PLC,0
South Ribble Borough Council,http://statistics.data.gov.uk/id/local-authority/30UE,Central Support Services,IT Consumables,413A,halfday consultancy,13/03/2024,0000496720,600,Revenue,IDOX PLC,0
South Ribble Borough Council,http://statistics.data.gov.uk/id/local-authority/30UE,Central Support Services,Consultancy Fees,4541,Iken onboarding and training services- X12 consultancy days,26/03/2024,0000493392,9600,Revenue,Iken Business Ltd,0
South Ribble Borough Council,http://statistics.data.gov.uk/id/local-authority/30UE,Central Support Services,Safety  Equipment,4016,"Goods to be ordered:, One set of battery and charging pads, SKU11404-000002 Lifepak Defibulator, 245 + VAT., One set of charging",20/03/2024,0000496654,588,Revenue,Imperative Training Ltd T/A defibshop.co.uk,0
South Ribble Borough Council,http://statistics.data.gov.uk/id/local-authority/30UE,Central Support Services,Hiring Expenses,3212,Continued Hire of VIN REDACTED 28/08/2023 - 25/09/2023,13/03/2024,0000496919,962.22,Revenue,Intack Self Drive Ltd,0
South Ribble Borough Council,http://statistics.data.gov.uk/id/local-authority/30UE,Central Support Services,Purchase of Bins,4043,"720 x 55L GREEN BOXES 6.67, 750 X BLACK LIDS 2.66",26/03/2024,0000497247,6717.6,Revenue,IPL Plastics (UK) Limited,0
South Ribble Borough Council,http://statistics.data.gov.uk/id/local-authority/30UE,Capital,Misc Capital Payments,C234,", Installation of new wall and door to create a storeroom., Refurbishment of the existing hall floor., Supply and fit of 2 x elec",26/03/2024,0000497357,9506,Revenue,J & K Construction Limited,0
South Ribble Borough Council,http://statistics.data.gov.uk/id/local-authority/30UE,Capital,Cap Contract Payment,C230,"Resident Giveaway 3	 			 , 100	Birch Betula pendula 60/90 0.78 	, 150	Crab Apple Malus sylvestris 60/90	0.98 	 , 200	Rowan Sorb",13/03/2024,0000496774,2609.5,Revenue,J A JONES & SONS,0
South Ribble Borough Council,http://statistics.data.gov.uk/id/local-authority/30UE,Capital,Cap Contract Payment,C230,"Marshway path	 			 , 400	Holly Ilex aquifolium	p9	1.80",13/03/2024,0000496774,720,Revenue,J A JONES & SONS,0
South Ribble Borough Council,http://statistics.data.gov.uk/id/local-authority/30UE,Capital,Cap Contract Payment,C230,"Bank Head lane			 	 , 325	Hornbeam	Carpinus betulus	60/90	0.88 	 , 325	Hawthorn	Crategus monogyna	60/91	0.72 	 , 225	Hazel	Cory",13/03/2024,0000496774,849.25,Revenue,J A JONES & SONS,0
South Ribble Borough Council,http://statistics.data.gov.uk/id/local-authority/30UE,Open Spaces,Commemorative Features,4019,"1 x Acer davidii 10/12RB 128.00, 1 x Sorbus aucuparia �Asplenifolia 10/12RB 78.00, 1 x Aesculus x carnea �Briotii 10/12RB 88",13/03/2024,0000496775,908,Revenue,J A JONES & SONS,0
South Ribble Borough Council,http://statistics.data.gov.uk/id/local-authority/30UE,Capital,Cap Contract Payment,C230,"Royalty Ave	 	March	 	 , 200	hawthorn	crategus monogyna 60/900 @ 0.78	156.00 , 200	blackthorn	Prunus Spinosa 60/90 @ 0.88	176.0",26/03/2024,0000497011,3234.25,Revenue,J A JONES & SONS,0
South Ribble Borough Council,http://statistics.data.gov.uk/id/local-authority/30UE,Capital,Cap Contract Payment,C230,"450 Hawthorn 0.78 = 351, 425 Blackthorn 0.85 = 361.25, 50 Guelder Rose 0.98 = 49, 25 Field maple 0.98 = 24.50, 25 Crab ap",26/03/2024,0000497013,1191.95,Revenue,J A JONES & SONS,0
South Ribble Borough Council,http://statistics.data.gov.uk/id/local-authority/30UE,Central Support Services,Operational Equip & Tools,4010,Grease dispenser,13/03/2024,0000496730,610,Revenue,J SEED & CO LTD,0
South Ribble Borough Council,http://statistics.data.gov.uk/id/local-authority/30UE,Recreation & Sport,Publicity & Promotion,4842,Supply of 15 Waterproof Montogomery Jackets and 15 Waterproof Trousers,06/03/2024,0000496735,1026,Revenue,Jacobs & Turner Ltd (T/A Trespass),0
South Ribble Borough Council,http://statistics.data.gov.uk/id/local-authority/30UE,Central Support Services,Consultancy Fees,4541,"CRM, CMS and online forms engine- initial payment",20/03/2024,0000496144,9300,Revenue,Jadu Creative Limited,0
South Ribble Borough Council,http://statistics.data.gov.uk/id/local-authority/30UE,Central Support Services,Consultancy Fees,4541,"CRM, CMS and online forms engine- initial payment",26/03/2024,0000496407,23000,Revenue,Jadu Creative Limited,0
South Ribble Borough Council,http://statistics.data.gov.uk/id/local-authority/30UE,Community Development,Miscellaneous Expenses,4851,0,20/03/2024,0000497149,500,Revenue,John Bell,0
South Ribble Borough Council,http://statistics.data.gov.uk/id/local-authority/30UE,Community Development,Miscellaneous Expenses,4851,0,20/03/2024,0000497152,500,Revenue,John House,0
South Ribble Borough Council,http://statistics.data.gov.uk/id/local-authority/30UE,Short Term Creditors,Amount Received,0140,Gifts for the Ukrainians as discussed and agreed,20/03/2024,0000496973,750.57,Revenue,John Penrose,0
South Ribble Borough Council,http://statistics.data.gov.uk/id/local-authority/30UE,Capital,Cap Contract Payment,C230,Hurst Grange Pond Works,13/03/2024,0000496253,1481.25,Revenue,John Wade Groundworks Ltd t/a Wade Group,0
South Ribble Borough Council,http://statistics.data.gov.uk/id/local-authority/30UE,Open Spaces,GM Refurbishment,4657,Green Flag Applications for 2024/5,06/03/2024,0000496404,1531,Revenue,KEEP BRITAIN TIDY,0
South Ribble Borough Council,http://statistics.data.gov.uk/id/local-authority/30UE,Community Development,Miscellaneous Expenses,4851,0,20/03/2024,0000497147,500,Revenue,Keith Rutherford,0
South Ribble Borough Council,http://statistics.data.gov.uk/id/local-authority/30UE,Surplus or Deficit on Trading,Electricity,2303,elec,06/03/2024,0000496350,784.27,Revenue,Kinex,0
South Ribble Borough Council,http://statistics.data.gov.uk/id/local-authority/30UE,Surplus or Deficit on Trading,Electricity,2303,Elec,26/03/2024,0000497229,790.05,Revenue,Kinex,0
South Ribble Borough Council,http://statistics.data.gov.uk/id/local-authority/30UE,Corporate Management,College Course,1403,Level 3 Certificate in Technical Support for Public Service Building Standards,20/03/2024,0000497009,600,Revenue,LABC,0
South Ribble Borough Council,http://statistics.data.gov.uk/id/local-authority/30UE,Corporate Management,Other Fees,4520,2022-23 External audit - IAS19 assurance letters,13/03/2024,0000496553,1100,Revenue,LANCASHIRE COUNTY COUNCIL PENSION FUND,0
South Ribble Borough Council,http://statistics.data.gov.uk/id/local-authority/30UE,Community Development,Professional Fees,4510,To provide Wellbeing Ambassador training at a cost of 565 and full day for a drop-down day at a cost of 565 for Hutton Grammar ,20/03/2024,0000496878,1000,Revenue,Lancashire Mind Limited,0
South Ribble Borough Council,http://statistics.data.gov.uk/id/local-authority/30UE,Waste Collection,Clinical Waste Disposal,5112,December 2023 - Incineration of clinical waste.,06/03/2024,0000496687,667.71,Revenue,LANCASHIRE TEACHING FT,0
South Ribble Borough Council,http://statistics.data.gov.uk/id/local-authority/30UE,Waste Collection,Clinical Waste Disposal,5112,November 2023 - Incineration of clinical waste.,06/03/2024,0000496701,747.69,Revenue,LANCASHIRE TEACHING FT,0
South Ribble Borough Council,http://statistics.data.gov.uk/id/local-authority/30UE,Waste Collection,Clinical Waste Disposal,5112,January 2024 - Incineration of clinical waste.,26/03/2024,0000497348,976.87,Revenue,LANCASHIRE TEACHING FT,0
South Ribble Borough Council,http://statistics.data.gov.uk/id/local-authority/30UE,Trade Waste,Landfilll Charges,5412,"Quarter 4 Disposal Fee, Landfill Tax & 5% Admin Fee",20/03/2024,0000496245,58841.64,Revenue,LANCS COUNTY COUNCIL,0
South Ribble Borough Council,http://statistics.data.gov.uk/id/local-authority/30UE,Trade Waste,Landfilll Charges,5412,"Quarter 3 Disposal Fee, Landfill Tax & 5% Admin Fee.",20/03/2024,0000496946,63823.53,Revenue,LANCS COUNTY COUNCIL,0
South Ribble Borough Council,http://statistics.data.gov.uk/id/local-authority/30UE,Central Support Services,Materials General,4040,"Turbo Actuator, VIN REDACTED, JFC-21316, , 2 Brake Discs, , 1 set of Brake Pads, , 2 Exhaust Clamps",26/03/2024,0000496314,1905.13,Revenue,LANCS DAF,0
South Ribble Borough Council,http://statistics.data.gov.uk/id/local-authority/30UE,Central Support Services,Materials General,4040,"coolant pipe, ad blue pipe, VIN REDACTED, JFC 21393",13/03/2024,0000496604,836.1,Revenue,LANCS DAF,0
South Ribble Borough Council,http://statistics.data.gov.uk/id/local-authority/30UE,Central Support Services,Materials General,4040,"service filter kit, exhaust clamp, VIN REDACTED, JFC 21439",26/03/2024,0000497039,525.94,Revenue,LANCS DAF,0
South Ribble Borough Council,http://statistics.data.gov.uk/id/local-authority/30UE,Capital,Cap Contract Payment,C230,"Path Repairs & Improvements, Worden Park, Additional Works, Surface Dressing & Hall Car Park Resurfacing",20/03/2024,0000497063,97979.29,Revenue,LANDSCAPE ENGINEERING LIMITED,0
South Ribble Borough Council,http://statistics.data.gov.uk/id/local-authority/30UE,Community Development,Core Fund,4861,To provide support for planned activities and projects for 2024 by Leyland in Bloom,26/03/2024,0000497187,1750,Revenue,Leyland In Bloom,0
South Ribble Borough Council,http://statistics.data.gov.uk/id/local-authority/30UE,Open Spaces,GM Refurbishment,4657,"replacement of x2 railing panels, galvanised painted and fitted",13/03/2024,0000496753,1160,Revenue,Leyland Lane Wrought Iron Gates & Railings,0
South Ribble Borough Council,http://statistics.data.gov.uk/id/local-authority/30UE,Recreation & Sport,Reactive Repair & Maintenance,2020,Rectify issues on the height barrier at Bamber Bridge Leisure centre as per NAME REDACTED request,26/03/2024,0000497332,600,Revenue,Leyland Lane Wrought Iron Gates & Railings,0
South Ribble Borough Council,http://statistics.data.gov.uk/id/local-authority/30UE,Corporate Management,Consultancy Fees,4541,NNDR3 Strategic Support 2022/23,06/03/2024,0000496737,23305,Revenue,LG FUTURES,0
South Ribble Borough Council,http://statistics.data.gov.uk/id/local-authority/30UE,Cash and Cash Equivalents,Amount Paid,0030,"Mayoral Event - Friday 8th March 2024, Remaining sum 765.00, (Deposit was paid against - PUR0059746), `Killer Takes It All` even",20/03/2024,0000497017,765,Revenue,Little Gargoyle Ltd T/A After Dark Murder Mystery,0
South Ribble Borough Council,http://statistics.data.gov.uk/id/local-authority/30UE,Capital,Capital Grant,C570,DFG WORK FOR LEVEL ACCESS SHOWER AT ADDRESS REDACTED AS PER SRBC PLANS AND SPECIFICATION AND QUOTE OF 5758.,06/03/2024,0000496614,5508.5,Revenue,LTL CONSTRUCTION & MAINTENANCE LTD,0
South Ribble Borough Council,http://statistics.data.gov.uk/id/local-authority/30UE,Capital,Capital Grant,C570,DFG WORK FOR LEVEL ACCESS SHOWER FOR NAME REDACTED AT ADDRESS REDACTED AS PER SRBC PLANS AND SPECIFICATI,20/03/2024,0000497042,5402.89,Revenue,LTL CONSTRUCTION & MAINTENANCE LTD,0
South Ribble Borough Council,http://statistics.data.gov.uk/id/local-authority/30UE,Capital,Capital Grant,C570,DFG WORKS FOR LEVEL ACCESS BATHROOM AT ADDRESS REDACTED NEW PROGRESS PROPERTY SO 50% OF TOTAL QUOTE TO BE PAID TOTAL QUO,20/03/2024,0000497107,4130.9,Revenue,MAHONEY CONTRACTORS LTD,0
South Ribble Borough Council,http://statistics.data.gov.uk/id/local-authority/30UE,Capital,Capital Grant,C570,"DFG WORKS FOR RAMP, DOOR WIDENING AND LEVEL THRESHOLD AT ADDRESS REDACTED -NEW PROGRESS PROPERTY SO 50% OF TOTAL",26/03/2024,0000497220,5277.11,Revenue,MAHONEY CONTRACTORS LTD,0
South Ribble Borough Council,http://statistics.data.gov.uk/id/local-authority/30UE,Parking Services,Materials General,4040,"1x LINDSEY AVENUE, 1x BROWNEDGE WALK, 2x BYMBRIG CLOSE T, , 1x WOODCROFT CLOSE, <-- 1-34 35-57 -->, , 2x TURPIN GREEN LANE T, 4x ",26/03/2024,0000497224,1029.5,Revenue,Main Street Signs Ltd,0
South Ribble Borough Council,http://statistics.data.gov.uk/id/local-authority/30UE,Central Support Services,Individual Subs Prof. Bodies,1741,Season Ticket Membership Renewal for Legal Services,20/03/2024,0000496930,645,Revenue,MBL SEMINARS,0
South Ribble Borough Council,http://statistics.data.gov.uk/id/local-authority/30UE,Economic Development,Investment & Improvement,485K,Production of economic evidence base for SRBC,13/03/2024,0000496797,8000,Revenue,Metro Dynamics Ltd,0
South Ribble Borough Council,http://statistics.data.gov.uk/id/local-authority/30UE,Central Support Services,Legal,4821,Provision of Locum Procurement services - NAME REDACTED for a 12 week period,06/03/2024,0000496689,2375,Revenue,Michael Page International Recruitment Limited,0
South Ribble Borough Council,http://statistics.data.gov.uk/id/local-authority/30UE,Central Support Services,Legal,4821,Provision of Locum Procurement services - NAME REDACTED for a 12 week period,20/03/2024,0000496995,2375,Revenue,Michael Page International Recruitment Limited,0
South Ribble Borough Council,http://statistics.data.gov.uk/id/local-authority/30UE,Central Support Services,Legal,4821,Provision of Locum Procurement services - NAME REDACTED for a 12 week period,20/03/2024,0000497114,2375,Revenue,Michael Page International Recruitment Limited,0
South Ribble Borough Council,http://statistics.data.gov.uk/id/local-authority/30UE,Central Support Services,Legal,4821,Provision of Locum Procurement services - NAME REDACTED for a 12 week period,26/03/2024,0000497346,2375,Revenue,Michael Page International Recruitment Limited,0
South Ribble Borough Council,http://statistics.data.gov.uk/id/local-authority/30UE,Surplus or Deficit on Trading,Reactive Repair & Maintenance,2020,"Hawksbury Drive Replace gutters along every property., Naughty Nails, Broadgate cycles, dentist, William hill, all rear elevation",13/03/2024,0000496451,2900,Revenue,Mick Bamber,0
South Ribble Borough Council,http://statistics.data.gov.uk/id/local-authority/30UE,Surplus or Deficit on Trading,Reactive Repair & Maintenance,2020,Broadgate Cycles Apply 70ml Zbars to roof. Install 100ml rock wool. Fix plastic coated roof sheets. Fix flashings to wall. as per,13/03/2024,0000496452,4200,Revenue,Mick Bamber,0
South Ribble Borough Council,http://statistics.data.gov.uk/id/local-authority/30UE,Corporate Management,Short Course,1402,Lantra Brushwood Chipper Training,06/03/2024,0000495226,878,Revenue,Millhouse Training Ltd,0
South Ribble Borough Council,http://statistics.data.gov.uk/id/local-authority/30UE,Economic Development,Grants Voluntary Organisation,4711,0,20/03/2024,0000496958,2000,Revenue,Miss Helen Marsh,0
South Ribble Borough Council,http://statistics.data.gov.uk/id/local-authority/30UE,Economic Development,Grants Voluntary Organisation,4711,0,20/03/2024,0000496956,2000,Revenue,Mr Tim Parker,0
South Ribble Borough Council,http://statistics.data.gov.uk/id/local-authority/30UE,Economic Development,Grants Voluntary Organisation,4711,0,20/03/2024,0000496957,2000,Revenue,Mrs Michelle Kinney,0
South Ribble Borough Council,http://statistics.data.gov.uk/id/local-authority/30UE,Economic Development,Grants Voluntary Organisation,4711,0,06/03/2024,0000496589,2000,Revenue,Mrs Sue Benson,0
South Ribble Borough Council,http://statistics.data.gov.uk/id/local-authority/30UE,Economic Development,Grants Voluntary Organisation,4711,0,06/03/2024,0000496590,2000,Revenue,Mrs Susan Crabtree,0
South Ribble Borough Council,http://statistics.data.gov.uk/id/local-authority/30UE,Capital,Capital Grant,C570,"DFG WORK FOR STEP ADAPTATION AT ADDRESS REDACTED AS PER SRBC PLANS AND SPEC AND QUOTE OF 4580.00, TOTAL COST 4580.00",26/03/2024,0000497219,4580,Revenue,MSG Building and Construction Ltd,0
South Ribble Borough Council,http://statistics.data.gov.uk/id/local-authority/30UE,Community Development,Miscellaneous Expenses,4851,0,20/03/2024,0000497148,500,Revenue,Muriel Laws,0
South Ribble Borough Council,http://statistics.data.gov.uk/id/local-authority/30UE,Homelessness,Temporary Accommodation,5311,"I am raising a purchase order to pay National Hotel Rooms (trading as Purple Roomz hotel in Bamber Bridge) the sum of 17,571.81 ",06/03/2024,0000496631,9844.75,Revenue,National Hotel Rooms Ltd t/a Purple Roomz,0
South Ribble Borough Council,http://statistics.data.gov.uk/id/local-authority/30UE,Community Development,Temporary Accommodation,5311,"I am raising a purchase order to pay National Hotel Rooms (trading as Purple Roomz hotel in Bamber Bridge) the sum of 17,571.81 ",06/03/2024,0000496631,7727.06,Revenue,National Hotel Rooms Ltd t/a Purple Roomz,0
South Ribble Borough Council,http://statistics.data.gov.uk/id/local-authority/30UE,Homelessness,Temporary Accommodation,5311,"Hello., , I am raising a purchase order to pay National Hotel Rooms (trading as Purple Roomz hotel in Bamber Bridge on Lostock La",13/03/2024,0000496894,7660.75,Revenue,National Hotel Rooms Ltd t/a Purple Roomz,0
South Ribble Borough Council,http://statistics.data.gov.uk/id/local-authority/30UE,Community Development,Temporary Accommodation,5311,"Hello., , I am raising a purchase order to pay National Hotel Rooms (trading as Purple Roomz hotel in Bamber Bridge on Lostock La",13/03/2024,0000496894,7732.58,Revenue,National Hotel Rooms Ltd t/a Purple Roomz,0
South Ribble Borough Council,http://statistics.data.gov.uk/id/local-authority/30UE,Development Control,Advertising,4841,Press notices for planning applications April 23 to March 24,13/03/2024,0000495201,622.8,Revenue,National World Publishing Limited,0
South Ribble Borough Council,http://statistics.data.gov.uk/id/local-authority/30UE,Development Control,Advertising,4841,Press notices for planning applications April 23 to March 24,13/03/2024,0000496236,622.8,Revenue,National World Publishing Limited,0
South Ribble Borough Council,http://statistics.data.gov.uk/id/local-authority/30UE,Local Tax Collection,Advertising,4841,public notice for council tax in the paper,26/03/2024,0000497319,1488,Revenue,National World Publishing Limited,0
South Ribble Borough Council,http://statistics.data.gov.uk/id/local-authority/30UE,Local Tax Collection,Advertising,4841,public notice for council tax in the paper,26/03/2024,0000497320,1124.64,Revenue,National World Publishing Limited,0
South Ribble Borough Council,http://statistics.data.gov.uk/id/local-authority/30UE,Central Support Services,Scanning,4150,"Docs-on-line Service Contract 01/04/2024-31/03/2025, 10,000 images @0.18 = 1,800",20/03/2024,0000496834,1800,Revenue,NEC Software Solutions UK Ltd,0
South Ribble Borough Council,http://statistics.data.gov.uk/id/local-authority/30UE,Community Development,Core Fund,4861,"Funds from the Boost Fund to replace the floodlights at the bowling club with environmentally friendly, neighbour friendly and co",20/03/2024,0000496761,2723,Revenue,New Longton Bowling Club,0
South Ribble Borough Council,http://statistics.data.gov.uk/id/local-authority/30UE,Economic Development,Grants Voluntary Organisation,4711,"The delivery of International Trade Services as defined in the Grant Funding Agreement., , �	Assistance for 20 companies, , �	Eac",20/03/2024,0000497044,5000,Revenue,North & Western Lancashire Chamber of Commerce,0
South Ribble Borough Council,http://statistics.data.gov.uk/id/local-authority/30UE,Democratic Represent and  Mgnt,Members Training,1406,"Coaching for NAME REDACTED with NAME REDACTED, Three Sessions",20/03/2024,0000496070,1800,Revenue,NORTH WEST EMPLOYERS,0
South Ribble Borough Council,http://statistics.data.gov.uk/id/local-authority/30UE,Central Support Services,Materials General,4040,SCARAB MINI SWEEPER BRUSHES - POLY/WIRE MIX-MATHIEU-0120089,06/03/2024,0000496395,1118.21,Revenue,NORTHERN MUNICIPAL SPARES LTD,0
South Ribble Borough Council,http://statistics.data.gov.uk/id/local-authority/30UE,Central Support Services,Materials General,4040,CHANNEL BRUSH - 2.8 mm POLY & 3.3mm WIRE 5 row 700/1000mm - MIDI SWEEPER-78399/2,06/03/2024,0000496472,899.35,Revenue,NORTHERN MUNICIPAL SPARES LTD,0
South Ribble Borough Council,http://statistics.data.gov.uk/id/local-authority/30UE,Central Support Services,Materials General,4040,1002032 - SCARAB MINI SWEEPER BRUSHES - POLY/WIRE MIX-MATHIEU-0120089,20/03/2024,0000497045,1118.21,Revenue,NORTHERN MUNICIPAL SPARES LTD,0
South Ribble Borough Council,http://statistics.data.gov.uk/id/local-authority/30UE,Open Spaces,GM Refurbishment,4657,Hire of EV Van for 6 months,13/03/2024,0000495481,590.6,Revenue,NORTHGATE VEHICLE HIRE NORTH WEST LTD,0
South Ribble Borough Council,http://statistics.data.gov.uk/id/local-authority/30UE,Parking Services,Parking Attendants,4514,"Variable Fee Car Park Enforcement , FEBRUARY 2024- Variable Recharge , Items",20/03/2024,0000496981,2299.5,Revenue,NSL LTD,0
South Ribble Borough Council,http://statistics.data.gov.uk/id/local-authority/30UE,Economic Development,Professional Fees,4510,South Ribble Residents Survey,20/03/2024,0000497120,2200,Revenue,NWA Social and Market Research Ltd,0
South Ribble Borough Council,http://statistics.data.gov.uk/id/local-authority/30UE,Democratic Represent and  Mgnt,Corp Subs to Professional Bodies,4720,Co-operative Councils Innovation Network,06/03/2024,0000496279,1830,Revenue,OLDHAM COUNCIL,0
South Ribble Borough Council,http://statistics.data.gov.uk/id/local-authority/30UE,Culture & Heritage,Professional Fees,4510,Performance Fee for Carols By Candlelight - Ticket Split Fee,06/03/2024,0000496035,936.6,Revenue,Outreach Opera,0
South Ribble Borough Council,http://statistics.data.gov.uk/id/local-authority/30UE,Capital,Cap Contract Payment,C230,Supply and fit bar furniture and decorative iron work in accordance with approved design,20/03/2024,0000496896,13110.75,Revenue,Paul Case Furniture Limited,0
South Ribble Borough Council,http://statistics.data.gov.uk/id/local-authority/30UE,Central Support Services,Planned Annual Repair & Maintenance,2021,"Flooring SRBC WASTE OFFICE To Uplift and Dispose and make floor good (screed) and supply and fit new Carpet Tiles (light Grey)., ",13/03/2024,0000496585,2578.95,Revenue,PDP PROPERTY SERVICES LTD,0
South Ribble Borough Council,http://statistics.data.gov.uk/id/local-authority/30UE,Central Support Services,Reactive Repair & Maintenance,2020,Supply and install height barrier at Civic Centre - requested by NAME REDACTED,13/03/2024,0000496413,5594.77,Revenue,PEERLESS FENCING LTD,0
South Ribble Borough Council,http://statistics.data.gov.uk/id/local-authority/30UE,Central Support Services,Software Licensing,4243,Microsoft Annual Server Licence Subscriptions - 50% Share 2024/25,20/03/2024,0000496475,39174.36,Revenue,PHOENIX SOFTWARE LTD,0
South Ribble Borough Council,http://statistics.data.gov.uk/id/local-authority/30UE,Central Support Services,Software Licensing,4243,Microsoft Annual 0365 Licence Subscriptions - 50% Share 2024/25,20/03/2024,0000496575,139362.11,Revenue,PHOENIX SOFTWARE LTD,0
South Ribble Borough Council,http://statistics.data.gov.uk/id/local-authority/30UE,Central Support Services,Consultancy Fees,4541,Citrix issue - roaming profile/FSlogic work,20/03/2024,0000497003,1000,Revenue,PHOENIX SOFTWARE LTD,0
South Ribble Borough Council,http://statistics.data.gov.uk/id/local-authority/30UE,Tourism,Rental,4012,2023/2024 - order raised in June 2023 to cover 12 months for Worden Hall - sanitary services but not enough money was on original,20/03/2024,0000496882,1552.53,Revenue,PHS GROUP PLC,0
South Ribble Borough Council,http://statistics.data.gov.uk/id/local-authority/30UE,Central Support Services,Rental,4012,"2023 / 2024 annual contract for the provision of sanitary services to the Civic Centre as per your ref 105796	, , to include duty",20/03/2024,0000496978,1322.93,Revenue,PHS GROUP PLC,0
South Ribble Borough Council,http://statistics.data.gov.uk/id/local-authority/30UE,Central Support Services,Agency Staff,1121,Enforcement consultancy services,06/03/2024,0000496595,1935,Revenue,Planning Control & PACE Solutions,0
South Ribble Borough Council,http://statistics.data.gov.uk/id/local-authority/30UE,Corporate Management,Corporate Training,1405,It�s All About Us Conference Signs order 1,26/03/2024,0000497164,1207.11,Revenue,Poppy Signs Ltd,0
South Ribble Borough Council,http://statistics.data.gov.uk/id/local-authority/30UE,Corporate Management,Corporate Training,1405,Our Values & Working Together Workshop Delivery,13/03/2024,0000496884,900,Revenue,POTENTIAL UNEARTHED LTD,0
South Ribble Borough Council,http://statistics.data.gov.uk/id/local-authority/30UE,Capital,Misc Capital Payments,C234,"Line Item Code Description Quantity Unit Unit Price Total, 1 P684-765 Environmental Monitor Type 765 for Temp.,, RH, UV, and Lux,",26/03/2024,0000496876,1600.9,Revenue,Preservation Equipment Ltd,0
South Ribble Borough Council,http://statistics.data.gov.uk/id/local-authority/30UE,Short Term Creditors,Amount Paid,0030,Prudential - Feb 24 Deductions from Payroll,26/03/2024,0000497295,900,Revenue,Prudential,0
South Ribble Borough Council,http://statistics.data.gov.uk/id/local-authority/30UE,Short Term Creditors,Amount Paid,0030,Prudential SS - Feb 24 Deductions from Payroll,26/03/2024,0000497296,9917.32,Revenue,Prudential,0
South Ribble Borough Council,http://statistics.data.gov.uk/id/local-authority/30UE,Recreation & Sport,Reactive Repair & Maintenance,2020,Materials,13/03/2024,0000496445,500,Revenue,PSR & Sons Joiners & Building Contractors,0
South Ribble Borough Council,http://statistics.data.gov.uk/id/local-authority/30UE,Tourism,Reactive Repair & Maintenance,2020,Materials,13/03/2024,0000496582,800,Revenue,PSR & Sons Joiners & Building Contractors,0
South Ribble Borough Council,http://statistics.data.gov.uk/id/local-authority/30UE,Recreation & Sport,Planned Annual Repair & Maintenance,2021,Materials,20/03/2024,0000496766,610,Revenue,PSR & Sons Joiners & Building Contractors,0
South Ribble Borough Council,http://statistics.data.gov.uk/id/local-authority/30UE,Surplus or Deficit on Trading,Reactive Repair & Maintenance,2020,"Property - ADDRESS REDACTED - Instruction from NAME REDACTED, KITCHEN, All Areas to be sheeted and protected as required. , To",26/03/2024,0000497337,7300,Revenue,PSR & Sons Joiners & Building Contractors,0
South Ribble Borough Council,http://statistics.data.gov.uk/id/local-authority/30UE,Recreation & Sport,Reactive Repair & Maintenance,2020,Fit new ago channels around perimiter of penwortham leisure centre. Including where none exsist at present. Work agreed on site w,13/03/2024,0000496574,1500,Revenue,RED ROSE BUILDING MAINTENANCE,0
South Ribble Borough Council,http://statistics.data.gov.uk/id/local-authority/30UE,Recreation & Sport,Reactive Repair & Maintenance,2020,MATERIALS,13/03/2024,0000496574,1700,Revenue,RED ROSE BUILDING MAINTENANCE,0
South Ribble Borough Council,http://statistics.data.gov.uk/id/local-authority/30UE,Central Support Services,Reactive Repair & Maintenance,2020,"Construct new pathway, to entrance of property @ Worden Farmyard. , , As agreed with NAME REDACTED & LCC social services. Quote to includ",13/03/2024,0000496620,2800,Revenue,RED ROSE BUILDING MAINTENANCE,0
South Ribble Borough Council,http://statistics.data.gov.uk/id/local-authority/30UE,Surplus or Deficit on Trading,Planned Annual Repair & Maintenance,2021,Quotation to put down a hard standing drive at the drive at North Lodge Worden Park the council will supply 40 tonnes of MOT whic,26/03/2024,0000497266,1800,Revenue,RED ROSE BUILDING MAINTENANCE,0
South Ribble Borough Council,http://statistics.data.gov.uk/id/local-authority/30UE,Surplus or Deficit on Trading,Planned Annual Repair & Maintenance,2021,MATERIALS,26/03/2024,0000497266,1200,Revenue,RED ROSE BUILDING MAINTENANCE,0
South Ribble Borough Council,http://statistics.data.gov.uk/id/local-authority/30UE,Community Safety Services,Consultancy Fees,4541,"DHR Author & Panel Chair , DHR2020/02",13/03/2024,0000496683,9500,Revenue,REVIEW AND INVESTIGATION LTD,0
South Ribble Borough Council,http://statistics.data.gov.uk/id/local-authority/30UE,Tourism,Fuel Oil,2301,Please deliver 700 litres of kerosene to ADDRESS REDACTED - Contact NAME REDACTED or NAME REDACTED for access to be delivered asap may need 60 m ,20/03/2024,0000496733,573.93,Revenue,RIBBLE FUEL OILS,0
South Ribble Borough Council,http://statistics.data.gov.uk/id/local-authority/30UE,Community Development,Miscellaneous Expenses,4851,0,20/03/2024,0000497145,500,Revenue,Richard Lucas,0
South Ribble Borough Council,http://statistics.data.gov.uk/id/local-authority/30UE,Community Development,Miscellaneous Expenses,4851,0,20/03/2024,0000497142,500,Revenue,Richard Spalding,0
South Ribble Borough Council,http://statistics.data.gov.uk/id/local-authority/30UE,Central Support Services,Photocopier Lease Rental,4036,A/C No.100000055292,13/03/2024,0000496742,2340,Revenue,RICOH (UK) LTD,0
South Ribble Borough Council,http://statistics.data.gov.uk/id/local-authority/30UE,Central Support Services,Photocopier Lease Rental,4036,A/c No.100000055292,13/03/2024,0000496743,1135.58,Revenue,RICOH (UK) LTD,0
South Ribble Borough Council,http://statistics.data.gov.uk/id/local-authority/30UE,Capital,Consultancy,C259,Principle Designer Services (RIBA 4-7) Jubilee Gardens Extra Care,13/03/2024,0000496782,544,Revenue,RJD Associates (NW) Limited,0
South Ribble Borough Council,http://statistics.data.gov.uk/id/local-authority/30UE,Corporate Management,Corporate Training,1405,� It�s All About Us Conference Filming,20/03/2024,0000497066,1400,Revenue,RT Productions LTD,0
South Ribble Borough Council,http://statistics.data.gov.uk/id/local-authority/30UE,Central Support Services,External Contractors Charges,4570,"Spec repair, , VIN REDACTED, JFC21290",06/03/2024,0000496377,8410.25,Revenue,RTS Muni,0
South Ribble Borough Council,http://statistics.data.gov.uk/id/local-authority/30UE,Central Support Services,Materials General,4040,"8x slides blocks, 2x bump stops, 4x bearings, 2x rams, 4x wear blocks, 2x link arm pins, VIN REDACTED, JFC20976",06/03/2024,0000496391,1589.64,Revenue,RTS Muni,0
South Ribble Borough Council,http://statistics.data.gov.uk/id/local-authority/30UE,Open Spaces,External Contractors Charges,4570,"Penwortham Way ADB Works, Removal of symptomatic ash along residential boundary of property plus removal of 2 x Alders, As per qu",26/03/2024,0000497176,3280,Revenue,RUSS ASPINALL T/A BEARDWOOD TREE SERVICE,0
South Ribble Borough Council,http://statistics.data.gov.uk/id/local-authority/30UE,Community Development,Miscellaneous Expenses,4851,0,20/03/2024,0000497136,500,Revenue,Salim Malek,0
South Ribble Borough Council,http://statistics.data.gov.uk/id/local-authority/30UE,Community Development,Miscellaneous Expenses,4851,0,20/03/2024,0000497140,500,Revenue,Sally McDonald,0
South Ribble Borough Council,http://statistics.data.gov.uk/id/local-authority/30UE,Elections,Polling Centre Costs,4421,"Quotation:205 _ Dated 25/01/2024, PRESIDING OFFICERS SUNDRIES BAGS, POLICE & CRIME COMMISSION ELECTION, 85 PACKS",20/03/2024,0000497105,1538.5,Revenue,SHAW & SONS LTD,0
South Ribble Borough Council,http://statistics.data.gov.uk/id/local-authority/30UE,Economic Development,Investment & Improvement,485K,"North West Apprenticeship Expo, , Full partnership level package for Skills , Factory careers, recruitment and skills , , Partner",20/03/2024,0000496991,5000,Revenue,Shout Connect Limited,0
South Ribble Borough Council,http://statistics.data.gov.uk/id/local-authority/30UE,Economic Development,Promotion Special Events,4844,"Lancashire Business Expo, , Partner package -1595 plus VAT",20/03/2024,0000496992,1595,Revenue,Shout Connect Limited,0
South Ribble Borough Council,http://statistics.data.gov.uk/id/local-authority/30UE,Development Control,Operational Equip & Tools,4010,Annual contract for lease / service of Plotter printer - HP Design jet XL 3600,26/03/2024,0000496679,1015.29,Revenue,Siemens Financial Services Limited,0
South Ribble Borough Council,http://statistics.data.gov.uk/id/local-authority/30UE,Open Spaces,Operational Equip & Tools,4010,As per quotation RL/Srib/05012024,26/03/2024,0000497373,1709.42,Revenue,Sixis Technology Ltd,0
South Ribble Borough Council,http://statistics.data.gov.uk/id/local-authority/30UE,Short Term Creditors,Amount Paid,0030,Labour Councillors - Feb 24 Deductions from Payroll,26/03/2024,0000497293,1915.78,Revenue,SOUTH RIBBLE LABOUR PARTY LOCAL GOVERNM,0
South Ribble Borough Council,http://statistics.data.gov.uk/id/local-authority/30UE,Recreation & Sport,Reactive Repair & Maintenance,2020,Supply and install Gas Detectors,20/03/2024,0000496708,13900,Revenue,South Ribble Leisure Ltd,0
South Ribble Borough Council,http://statistics.data.gov.uk/id/local-authority/30UE,Short Term Creditors,Amount Received,0140,,20/03/2024,0000496800,1274,Revenue,South Ribble Leisure Ltd,0
South Ribble Borough Council,http://statistics.data.gov.uk/id/local-authority/30UE,Community Development,Professional Fees,4510,"Legend charges HAF Winter 2023, , Admin time inputting Christmas program into Legend: 10 hours in total 174.70 , Legend costs = ",20/03/2024,0000497052,1274.7,Revenue,South Ribble Leisure Ltd,0
South Ribble Borough Council,http://statistics.data.gov.uk/id/local-authority/30UE,Community Development,Contributions to Other Bodies,4730,HAF Plus Provision at February Half Term 2024,20/03/2024,0000497131,950,Revenue,South Ribble Leisure Ltd,0
South Ribble Borough Council,http://statistics.data.gov.uk/id/local-authority/30UE,Recreation & Sport,Professional Fees,4510,"Coaching Support on Active Schools Programme - January and February , , Tennis Coaching",20/03/2024,0000497132,1220.96,Revenue,South Ribble Leisure Ltd,0
South Ribble Borough Council,http://statistics.data.gov.uk/id/local-authority/30UE,Recreation & Sport,Gas,2304,25/7/23-23/10/23 Gas Moss Side Community Centre,13/03/2024,0000495959,651.83,Revenue,SSE 271850110 Moss Side CC Dunkirk Hall,0
South Ribble Borough Council,http://statistics.data.gov.uk/id/local-authority/30UE,Surplus or Deficit on Trading,Electricity,2303,,26/03/2024,0000496961,2808.12,Revenue,SSE Energy Supply Ltd 18685 97510,0
South Ribble Borough Council,http://statistics.data.gov.uk/id/local-authority/30UE,Democratic Represent and  Mgnt,External Catering Charges,4575,"Christmas Lunch 01.12.2023, Christmas Lunch x 83 , Mince Pies x 83",13/03/2024,0000496837,2368.96,Revenue,St Catherines Social Enterprise Ltd,0
South Ribble Borough Council,http://statistics.data.gov.uk/id/local-authority/30UE,Community Development,Core Fund,4861,"Support to hold three afternoon tea and music events, particularly for the socially isolated and those living with dementia, as d",20/03/2024,0000496897,800,Revenue,St Mary`s Community Centre,0
South Ribble Borough Council,http://statistics.data.gov.uk/id/local-authority/30UE,Service Management & Support,Diesel Fuel,3132,"17000 Ltrs Diesel @ 119.37ppl into the , feeder tank at Unit 81 Bison Place, Moss , Side key for cabinet is available from the , ",20/03/2024,0000496828,18060.68,Revenue,Standard Fuel Oils LtdMain,0
South Ribble Borough Council,http://statistics.data.gov.uk/id/local-authority/30UE,Capital,Capital Grant,C570,"DFG WORKS FOR STAIRLIFT AT ADDRESS REDACTED � AS PER QUOTE 3676.00, Total Cost of grant 3676.00",20/03/2024,0000497054,3676,Revenue,Stannah Lift Services Ltd,0
South Ribble Borough Council,http://statistics.data.gov.uk/id/local-authority/30UE,Community Development,Miscellaneous Expenses,4851,"To provide catering - East Meets West x100, 6.99 per head - total 699., Mini cream cake upgrade x100, 75p per head - total 75.",20/03/2024,0000496619,774,Revenue,Style Catering,0
South Ribble Borough Council,http://statistics.data.gov.uk/id/local-authority/30UE,Community Development,Miscellaneous Expenses,4851,0,20/03/2024,0000497138,500,Revenue,Susan Hobson,0
South Ribble Borough Council,http://statistics.data.gov.uk/id/local-authority/30UE,Open Spaces,GM Refurbishment,4657,1x Rope Bridge and fixings as per quotation no. CF211123B. Total cost 839.95.,20/03/2024,0000497108,839.95,Revenue,SUTCLIFFE PLAY LTD,0
South Ribble Borough Council,http://statistics.data.gov.uk/id/local-authority/30UE,Central Support Services,Materials General,4040,"1x wiring loom, VIN REDACTED, JFC21430",26/03/2024,0000497055,755.55,Revenue,TERBERG MATEC UK LTD,0
South Ribble Borough Council,http://statistics.data.gov.uk/id/local-authority/30UE,Central Support Services,Members Subsistence,4621,NAME REDACTED - Agency worker,20/03/2024,0000496169,1050,Revenue,The Oyster Partnership,0
South Ribble Borough Council,http://statistics.data.gov.uk/id/local-authority/30UE,Central Support Services,Members Subsistence,4621,NAME REDACTED - Agency worker,13/03/2024,0000496399,1050,Revenue,The Oyster Partnership,0
South Ribble Borough Council,http://statistics.data.gov.uk/id/local-authority/30UE,Central Support Services,Members Subsistence,4621,NAME REDACTED - Agency worker,13/03/2024,0000496568,1050,Revenue,The Oyster Partnership,0
South Ribble Borough Council,http://statistics.data.gov.uk/id/local-authority/30UE,Central Support Services,Members Subsistence,4621,NAME REDACTED - Agency worker,13/03/2024,0000496769,1050,Revenue,The Oyster Partnership,0
South Ribble Borough Council,http://statistics.data.gov.uk/id/local-authority/30UE,Capital,Misc Capital Payments,C234,Sound equipment and set up for Worden Hall:,06/03/2024,0000495486,844.26,Revenue,The Production Component,0
South Ribble Borough Council,http://statistics.data.gov.uk/id/local-authority/30UE,Capital,Misc Capital Payments,C234,"Uplighting system consisting of:, 8 x Uplighters, 1 x Carry & charging case",06/03/2024,0000495962,2665,Revenue,The Production Component,0
South Ribble Borough Council,http://statistics.data.gov.uk/id/local-authority/30UE,Tourism,Electricity,2303,1/2 to 29/2/24,26/03/2024,0000497064,8214.32,Revenue,Total Gas & Power (Elec) 3006014935 - Worden Hall,0
South Ribble Borough Council,http://statistics.data.gov.uk/id/local-authority/30UE,Central Support Services,Electricity,2303,1/2 to 29/2/24,26/03/2024,0000497086,8780.43,Revenue,Total Gas & Power (Elec) 3006014946 - Civic Centre,0
South Ribble Borough Council,http://statistics.data.gov.uk/id/local-authority/30UE,Central Support Services,Electricity,2303,1/2 to 29/2/24,26/03/2024,0000497014,6086.11,Revenue,Total Gas & Power (Elec) 3006014957 - Moss Side De,0
